[Event "Late-Titled-Tuesday-Blitz-February-06-2024"]
[Site "Chess.com"]
[Date "2024.02.06"]
[Round "8"]
[White "GeorgiosSouleidis"]
[Black "Der_Balak_3Halak"]
[Result "0-1"]
[WhiteElo "2669"]
[BlackElo "2535"]
[TimeControl "180+1"]
[EndTime "15:28:26 PST"]
[Termination "Der_Balak_3Halak won by resignation"]

1. e4 {[%clk 0:03:00.9]} 1... c5 {[%clk 0:03:00.4]} 2. Be2 {[%clk 0:03:00.8]}
2... e5 {[%clk 0:02:59.3]} 3. d3 {[%clk 0:03:01.5]} 3... g6 {[%clk 0:02:57.5]}
4. f4 {[%clk 0:03:01.8]} 4... d6 {[%clk 0:02:57]} 5. Nf3 {[%clk 0:03:02]} 5...
Nc6 {[%clk 0:02:55]} 6. fxe5 {[%clk 0:03:01.4]} 6... dxe5 {[%clk 0:02:55.9]} 7.
O-O {[%clk 0:03:01.9]} 7... Bg7 {[%clk 0:02:55.8]} 8. c4 {[%clk 0:03:02.1]} 8...
Nge7 {[%clk 0:02:56.1]} 9. Nc3 {[%clk 0:03:02.7]} 9... O-O {[%clk 0:02:56.2]}
10. Be3 {[%clk 0:03:03.3]} 10... Nd4 {[%clk 0:02:55.8]} 11. Nd5 {[%clk
0:03:03.8]} 11... f5 {[%clk 0:02:46]} 12. Bg5 {[%clk 0:02:46.7]} 12... Ndc6
{[%clk 0:02:44.6]} 13. Qd2 {[%clk 0:02:34]} 13... f4 {[%clk 0:02:33.4]} 14.
Nxe7+ {[%clk 0:02:14]} 14... Nxe7 {[%clk 0:02:34.3]} 15. b4 {[%clk 0:02:14.3]}
15... h6 {[%clk 0:02:32.5]} 16. Bh4 {[%clk 0:02:07.4]} 16... g5 {[%clk
0:02:31.7]} 17. Bf2 {[%clk 0:02:07.7]} 17... cxb4 {[%clk 0:02:26.6]} 18. Qxb4
{[%clk 0:02:05.6]} 18... Nc6 {[%clk 0:02:24.5]} 19. Qb2 {[%clk 0:01:59.1]} 19...
g4 {[%clk 0:02:21.7]} 20. Nh4 {[%clk 0:01:50]} 20... Qg5 {[%clk 0:02:02.1]} 21.
g3 {[%clk 0:01:32.8]} 21... Nd4 {[%clk 0:01:56.5]} 22. Bxd4 {[%clk 0:01:27.6]}
22... exd4 {[%clk 0:01:57.4]} 23. Qb5 {[%clk 0:00:48.8]} 23... f3 {[%clk
0:01:39.8]} 24. Qxg5 {[%clk 0:00:48.3]} 24... hxg5 {[%clk 0:01:39]} 25. Bxf3
{[%clk 0:00:39.9]} 25... gxh4 {[%clk 0:01:34.9]} 26. Be2 {[%clk 0:00:36.4]}
26... hxg3 {[%clk 0:01:33.7]} 27. Rxf8+ {[%clk 0:00:35.8]} 27... Kxf8 {[%clk
0:01:32.1]} 28. hxg3 {[%clk 0:00:36.7]} 28... Be5 {[%clk 0:01:31.1]} 29. Kg2
{[%clk 0:00:36.7]} 29... Be6 {[%clk 0:01:29.5]} 30. Rh1 {[%clk 0:00:37.3]} 30...
Kg7 {[%clk 0:01:29.1]} 31. Rh5 {[%clk 0:00:37.2]} 31... Bf6 {[%clk 0:01:23.2]}
32. Rb5 {[%clk 0:00:33.9]} 32... b6 {[%clk 0:01:20.4]} 33. c5 {[%clk 0:00:33.2]}
33... Bd7 {[%clk 0:01:19.1]} 34. Rb2 {[%clk 0:00:32]} 34... Rb8 {[%clk
0:01:09.6]} 35. c6 {[%clk 0:00:26.6]} 35... Bxc6 {[%clk 0:01:01.7]} 36. Bxg4
{[%clk 0:00:27.1]} 36... Be5 {[%clk 0:00:58]} 37. Bf5 {[%clk 0:00:25.7]} 37...
Kf7 {[%clk 0:00:52.6]} 38. Rc2 {[%clk 0:00:26.2]} 38... Bb5 {[%clk 0:00:49.2]}
39. Rd2 {[%clk 0:00:23.3]} 39... Rg8 {[%clk 0:00:47.2]} 40. g4 {[%clk
0:00:22.7]} 40... Rh8 {[%clk 0:00:47.6]} 41. Kf3 {[%clk 0:00:23]} 41... Rh3+
{[%clk 0:00:46.9]} 42. Ke2 {[%clk 0:00:23.3]} 42... Re3+ {[%clk 0:00:47.1]} 43.
Kd1 {[%clk 0:00:24]} 43... Rxd3 {[%clk 0:00:47.3]} 44. Rxd3 {[%clk 0:00:23.5]}
44... Bxd3 {[%clk 0:00:48.2]} 45. Kd2 {[%clk 0:00:24.4]} 45... Bc4 {[%clk
0:00:47.9]} 46. g5 {[%clk 0:00:24.9]} 46... Bf4+ {[%clk 0:00:47.6]} 47. Kc2
{[%clk 0:00:24.7]} 47... d3+ {[%clk 0:00:48.1]} 0-1

[Event "Late-Titled-Tuesday-Blitz-February-06-2024"]
[Site "Chess.com"]
[Date "2024.02.06"]
[Round "8"]
[White "cande_francisco"]
[Black "Gryffindorac8"]
[Result "0-1"]
[WhiteElo "2523"]
[BlackElo "2386"]
[TimeControl "180+1"]
[EndTime "15:28:28 PST"]
[Termination "Gryffindorac8 won by resignation"]

1. e4 {[%clk 0:03:00.9]} 1... c5 {[%clk 0:02:59.8]} 2. Nf3 {[%clk 0:03:01.1]}
2... d6 {[%clk 0:02:59.5]} 3. Bb5+ {[%clk 0:03:01.5]} 3... Bd7 {[%clk
0:02:59.5]} 4. Bxd7+ {[%clk 0:03:01.3]} 4... Qxd7 {[%clk 0:03:00.4]} 5. c4
{[%clk 0:03:01]} 5... Nf6 {[%clk 0:02:58.1]} 6. Nc3 {[%clk 0:03:01]} 6... Nc6
{[%clk 0:02:56.8]} 7. d4 {[%clk 0:03:01.5]} 7... cxd4 {[%clk 0:02:56.5]} 8. Nxd4
{[%clk 0:03:02.4]} 8... g6 {[%clk 0:02:56.7]} 9. f3 {[%clk 0:03:02.8]} 9... Bg7
{[%clk 0:02:56.6]} 10. Be3 {[%clk 0:03:03.5]} 10... O-O {[%clk 0:02:55.3]} 11.
O-O {[%clk 0:03:04]} 11... e6 {[%clk 0:02:53.6]} 12. Qd2 {[%clk 0:02:49.7]}
12... Rac8 {[%clk 0:02:50.3]} 13. b3 {[%clk 0:02:49]} 13... a6 {[%clk
0:02:49.6]} 14. Nxc6 {[%clk 0:02:40.2]} 14... Qxc6 {[%clk 0:02:40.4]} 15. Rac1
{[%clk 0:02:33.4]} 15... Rfd8 {[%clk 0:02:33.6]} 16. Rfd1 {[%clk 0:02:31.7]}
16... h5 {[%clk 0:01:43.7]} 17. Bd4 {[%clk 0:01:34.4]} 17... Rd7 {[%clk
0:01:28.6]} 18. Na4 {[%clk 0:01:25.9]} 18... Rdd8 {[%clk 0:01:18]} 19. Qb2
{[%clk 0:01:13.4]} 19... Ne8 {[%clk 0:01:13]} 20. Bxg7 {[%clk 0:01:12.6]} 20...
Nxg7 {[%clk 0:01:13.8]} 21. Qd4 {[%clk 0:01:04]} 21... b5 {[%clk 0:01:03.3]} 22.
Nb2 {[%clk 0:00:58.9]} 22... b4 {[%clk 0:00:45.1]} 23. Nd3 {[%clk 0:00:45.4]}
23... e5 {[%clk 0:00:41.8]} 24. Qe3 {[%clk 0:00:38.5]} 24... a5 {[%clk
0:00:41.6]} 25. c5 {[%clk 0:00:32.8]} 25... Ne6 {[%clk 0:00:38.6]} 26. cxd6
{[%clk 0:00:10.3]} 26... Qxd6 {[%clk 0:00:39.5]} 27. Nb2 {[%clk 0:00:08.1]}
27... Rxc1 {[%clk 0:00:35.4]} 28. Qxc1 {[%clk 0:00:07.9]} 28... Qe7 {[%clk
0:00:33.6]} 29. Nc4 {[%clk 0:00:07.7]} 29... Nd4 {[%clk 0:00:30.8]} 30. Nxa5
{[%clk 0:00:06.8]} 30... Ne2+ {[%clk 0:00:30.8]} 31. Kf2 {[%clk 0:00:07.2]}
31... Nxc1 {[%clk 0:00:31.3]} 0-1

[Event "Late-Titled-Tuesday-Blitz-February-06-2024"]
[Site "Chess.com"]
[Date "2024.02.06"]
[Round "8"]
[White "yaguigor"]
[Black "Nouali_Mohamed"]
[Result "1-0"]
[WhiteElo "2708"]
[BlackElo "2571"]
[TimeControl "180+1"]
[EndTime "15:28:33 PST"]
[Termination "yaguigor won by resignation"]

1. Nf3 {[%clk 0:03:00.9]} 1... Nf6 {[%clk 0:02:59.6]} 2. c4 {[%clk 0:02:58.9]}
2... g6 {[%clk 0:02:59.3]} 3. Nc3 {[%clk 0:02:58.4]} 3... Bg7 {[%clk 0:02:59.7]}
4. e4 {[%clk 0:02:58.1]} 4... d6 {[%clk 0:03:00.2]} 5. d4 {[%clk 0:02:58.5]}
5... O-O {[%clk 0:03:00.6]} 6. Be2 {[%clk 0:02:58.5]} 6... c5 {[%clk 0:03:01.1]}
7. d5 {[%clk 0:02:47.4]} 7... a6 {[%clk 0:03:01.1]} 8. a4 {[%clk 0:02:46.4]}
8... e5 {[%clk 0:02:53.7]} 9. O-O {[%clk 0:02:37.9]} 9... Nh5 {[%clk 0:02:52.5]}
10. Kh1 {[%clk 0:02:35.2]} 10... Nf4 {[%clk 0:02:47.2]} 11. Re1 {[%clk
0:02:24.2]} 11... f5 {[%clk 0:02:26.8]} 12. Bxf4 {[%clk 0:02:16.8]} 12... exf4
{[%clk 0:02:00]} 13. exf5 {[%clk 0:02:12.6]} 13... Bxf5 {[%clk 0:01:59.6]} 14.
Bd3 {[%clk 0:02:12.9]} 14... Bg4 {[%clk 0:01:54.8]} 15. Qb3 {[%clk 0:01:56.7]}
15... Nd7 {[%clk 0:01:34.9]} 16. Ne4 {[%clk 0:01:52.2]} 16... Bxf3 {[%clk
0:01:26.4]} 17. gxf3 {[%clk 0:01:50.7]} 17... Ne5 {[%clk 0:01:25.7]} 18. Bf1
{[%clk 0:01:50.6]} 18... Rf5 {[%clk 0:01:15.4]} 19. Bh3 {[%clk 0:01:49]} 19...
Rh5 {[%clk 0:01:14.3]} 20. Be6+ {[%clk 0:01:47.9]} 20... Kh8 {[%clk 0:01:14.7]}
21. Rg1 {[%clk 0:01:44.7]} 21... b5 {[%clk 0:00:39.3]} 22. axb5 {[%clk
0:01:36.4]} 22... axb5 {[%clk 0:00:39.3]} 23. Rxa8 {[%clk 0:01:35.4]} 23... Qxa8
{[%clk 0:00:40.2]} 24. cxb5 {[%clk 0:01:28]} 24... c4 {[%clk 0:00:40.5]} 25. Qa3
{[%clk 0:01:03.6]} 25... Qxa3 {[%clk 0:00:08.6]} 26. bxa3 {[%clk 0:01:04.5]}
26... Nxf3 {[%clk 0:00:09.5]} 27. h3 {[%clk 0:01:01.9]} 27... Nd4 {[%clk
0:00:07.2]} 28. b6 {[%clk 0:00:59.2]} 28... f3 {[%clk 0:00:04.1]} 29. b7 {[%clk
0:00:52.5]} 29... Nxe6 {[%clk 0:00:02.2]} 30. b8=Q+ {[%clk 0:00:52.8]} 30... Nf8
{[%clk 0:00:02.8]} 31. Rg3 {[%clk 0:00:51]} 31... Rxd5 {[%clk 0:00:02]} 32. Rxf3
{[%clk 0:00:48.5]} 32... Rd1+ {[%clk 0:00:02.5]} 33. Kg2 {[%clk 0:00:47.7]}
33... Kg8 {[%clk 0:00:03.4]} 34. Nf6+ {[%clk 0:00:44.6]} 34... Kh8 {[%clk
0:00:02.5]} 35. Nd7 {[%clk 0:00:43.7]} 1-0

[Event "Late-Titled-Tuesday-Blitz-February-06-2024"]
[Site "Chess.com"]
[Date "2024.02.06"]
[Round "8"]
[White "mjelcic"]
[Black "Bala-Afiada"]
[Result "1-0"]
[WhiteElo "2210"]
[BlackElo "2019"]
[TimeControl "180+1"]
[EndTime "15:28:34 PST"]
[Termination "mjelcic won by resignation"]

1. d4 {[%clk 0:02:56.3]} 1... Nf6 {[%clk 0:02:59.6]} 2. Bf4 {[%clk 0:02:55.6]}
2... d5 {[%clk 0:02:58.7]} 3. e3 {[%clk 0:02:55.6]} 3... c5 {[%clk 0:02:58.6]}
4. c3 {[%clk 0:02:54.9]} 4... Nc6 {[%clk 0:02:58.1]} 5. Nd2 {[%clk 0:02:54.8]}
5... Qb6 {[%clk 0:02:58.3]} 6. Qb3 {[%clk 0:02:50]} 6... c4 {[%clk 0:02:58.4]}
7. Qc2 {[%clk 0:02:49.2]} 7... Qd8 {[%clk 0:02:37.2]} 8. e4 {[%clk 0:02:38.5]}
8... e6 {[%clk 0:02:32.8]} 9. Ngf3 {[%clk 0:02:34.1]} 9... b5 {[%clk 0:02:31.5]}
10. Ne5 {[%clk 0:02:30.1]} 10... Nxe5 {[%clk 0:02:20.5]} 11. Bxe5 {[%clk
0:02:28.8]} 11... b4 {[%clk 0:02:06.2]} 12. cxb4 {[%clk 0:02:26.4]} 12... Bd7
{[%clk 0:01:51.1]} 13. a3 {[%clk 0:02:25.6]} 13... Be7 {[%clk 0:01:27.9]} 14. f3
{[%clk 0:02:24.4]} 14... O-O {[%clk 0:01:26.5]} 15. Be2 {[%clk 0:02:24.4]} 15...
a5 {[%clk 0:01:22.9]} 16. bxa5 {[%clk 0:02:22.9]} 16... Qxa5 {[%clk 0:01:17.4]}
17. O-O {[%clk 0:02:21.6]} 17... Ba4 {[%clk 0:01:17.4]} 18. Qc1 {[%clk
0:02:18.4]} 18... Rfc8 {[%clk 0:01:10.4]} 19. Nb1 {[%clk 0:02:18.2]} 19... Nd7
{[%clk 0:00:53.3]} 20. Bf4 {[%clk 0:02:12]} 20... Nb6 {[%clk 0:00:25.9]} 21. Nc3
{[%clk 0:02:10]} 21... Be8 {[%clk 0:00:25.7]} 22. e5 {[%clk 0:02:04.6]} 22...
Na4 {[%clk 0:00:24.5]} 23. Bd2 {[%clk 0:02:03.2]} 23... Nxc3 {[%clk 0:00:19.6]}
24. Bxc3 {[%clk 0:02:03.5]} 24... Qb6 {[%clk 0:00:19.6]} 25. Qe3 {[%clk
0:02:02.4]} 25... Qb3 {[%clk 0:00:19]} 26. Bd1 {[%clk 0:01:58.4]} 26... Qb7
{[%clk 0:00:18.2]} 27. Bc2 {[%clk 0:01:58.4]} 27... h6 {[%clk 0:00:17.5]} 28.
Rad1 {[%clk 0:01:52.4]} 28... Ba4 {[%clk 0:00:17.6]} 29. Bxa4 {[%clk 0:01:50.8]}
29... Rxa4 {[%clk 0:00:17.4]} 30. f4 {[%clk 0:01:51.7]} 30... Qb3 {[%clk
0:00:10.7]} 31. f5 {[%clk 0:01:47.7]} 31... Qc2 {[%clk 0:00:11]} 32. f6 {[%clk
0:01:45]} 32... Bf8 {[%clk 0:00:11.4]} 33. fxg7 {[%clk 0:01:36.1]} 33... Bxg7
{[%clk 0:00:12.3]} 34. Qf2 {[%clk 0:01:35.5]} 34... Qg6 {[%clk 0:00:11.7]} 35.
Qf4 {[%clk 0:01:31.1]} 35... Rf8 {[%clk 0:00:10.7]} 36. Rf3 {[%clk 0:01:28.1]}
36... Kh7 {[%clk 0:00:10.9]} 37. Rg3 {[%clk 0:01:27]} 37... Qf5 {[%clk 0:00:05]}
38. Qxf5+ {[%clk 0:01:26.2]} 38... exf5 {[%clk 0:00:05.9]} 39. Rf1 {[%clk
0:01:26.5]} 39... Raa8 {[%clk 0:00:04.1]} 40. Rxf5 {[%clk 0:01:26.4]} 40... f6
{[%clk 0:00:04.6]} 41. e6 {[%clk 0:01:19.3]} 41... Ra7 {[%clk 0:00:04]} 42. Rxd5
{[%clk 0:01:18.2]} 42... Re7 {[%clk 0:00:03.8]} 43. Rd6 {[%clk 0:01:18.5]} 43...
Rfe8 {[%clk 0:00:03.7]} 44. d5 {[%clk 0:01:19]} 44... f5 {[%clk 0:00:04]} 45.
Bxg7 {[%clk 0:01:14.6]} 45... Rxg7 {[%clk 0:00:04.9]} 46. Rxg7+ {[%clk
0:01:10.8]} 46... Kxg7 {[%clk 0:00:05.8]} 47. Rc6 {[%clk 0:01:10.5]} 47... Kf6
{[%clk 0:00:05.5]} 48. Rxc4 {[%clk 0:01:09.9]} 48... Ke5 {[%clk 0:00:06.4]} 49.
Rc5 {[%clk 0:01:09.7]} 49... Kd6 {[%clk 0:00:06.7]} 50. Rb5 {[%clk 0:01:09.2]}
50... Rb8 {[%clk 0:00:06.6]} 51. Rxb8 {[%clk 0:01:08.5]} 1-0

[Event "Late-Titled-Tuesday-Blitz-February-06-2024"]
[Site "Chess.com"]
[Date "2024.02.06"]
[Round "8"]
[White "traviscottofficial"]
[Black "rdarruda"]
[Result "1/2-1/2"]
[WhiteElo "2673"]
[BlackElo "2551"]
[TimeControl "180+1"]
[EndTime "15:28:37 PST"]
[Termination "Game drawn by repetition"]

1. d4 {[%clk 0:02:59.4]} 1... Nf6 {[%clk 0:02:57.2]} 2. c4 {[%clk 0:02:59.9]}
2... e5 {[%clk 0:02:56.1]} 3. dxe5 {[%clk 0:02:59]} 3... Ne4 {[%clk 0:02:56]} 4.
Nf3 {[%clk 0:02:58.7]} 4... Nc6 {[%clk 0:02:55.8]} 5. e3 {[%clk 0:02:58]} 5...
d6 {[%clk 0:02:54.1]} 6. Bd3 {[%clk 0:02:54.4]} 6... Nc5 {[%clk 0:02:53]} 7. Bc2
{[%clk 0:02:52.3]} 7... dxe5 {[%clk 0:02:52.1]} 8. Qxd8+ {[%clk 0:02:52.5]} 8...
Kxd8 {[%clk 0:02:52.1]} 9. Nc3 {[%clk 0:02:53.3]} 9... Be6 {[%clk 0:02:48.5]}
10. b3 {[%clk 0:02:53.1]} 10... Nb4 {[%clk 0:02:32.3]} 11. Bb1 {[%clk
0:02:42.7]} 11... Nbd3+ {[%clk 0:02:32]} 12. Ke2 {[%clk 0:02:38.3]} 12... Nxc1+
{[%clk 0:02:30.2]} 13. Rxc1 {[%clk 0:02:38.8]} 13... f6 {[%clk 0:02:30.1]} 14.
Nd2 {[%clk 0:02:24.7]} 14... Be7 {[%clk 0:02:26.2]} 15. Nde4 {[%clk 0:02:24.9]}
15... Nxe4 {[%clk 0:02:25]} 16. Bxe4 {[%clk 0:02:24]} 16... c6 {[%clk
0:02:24.9]} 17. Na4 {[%clk 0:02:12.2]} 17... Ba3 {[%clk 0:02:22.2]} 18. Rc2
{[%clk 0:02:07.5]} 18... Kc7 {[%clk 0:02:18.8]} 19. c5 {[%clk 0:01:56.7]} 19...
Rad8 {[%clk 0:02:08.8]} 20. Nb2 {[%clk 0:01:44.8]} 20... f5 {[%clk 0:01:55.5]}
21. Bd3 {[%clk 0:01:44.1]} 21... e4 {[%clk 0:01:49.2]} 22. Bc4 {[%clk
0:01:39.9]} 22... Bxb2 {[%clk 0:01:49.4]} 23. Rxb2 {[%clk 0:01:36.4]} 23...
Bxc4+ {[%clk 0:01:49.9]} 24. bxc4 {[%clk 0:01:37]} 24... Rd3 {[%clk 0:01:46.9]}
25. Rab1 {[%clk 0:01:35.7]} 25... Rb8 {[%clk 0:01:46.6]} 26. Rb3 {[%clk
0:01:35.7]} 26... Rd7 {[%clk 0:01:37.8]} 27. Ra3 {[%clk 0:01:34.8]} 27... a6
{[%clk 0:01:34.5]} 28. f4 {[%clk 0:01:22]} 28... Rbd8 {[%clk 0:01:33.4]} 29. Rb2
{[%clk 0:01:21.3]} 29... Rd3 {[%clk 0:01:31.7]} 30. Rab3 {[%clk 0:01:21.6]}
30... Rxb3 {[%clk 0:01:29.5]} 31. axb3 {[%clk 0:01:22.5]} 31... Rd3 {[%clk
0:01:25.9]} 32. h3 {[%clk 0:01:14.6]} 32... a5 {[%clk 0:01:25.3]} 33. g4 {[%clk
0:01:09.1]} 33... g6 {[%clk 0:01:24.2]} 34. g5 {[%clk 0:01:07.4]} 34... Kb8
{[%clk 0:01:19]} 35. h4 {[%clk 0:01:03.4]} 35... Ka7 {[%clk 0:01:17.9]} 36. Ra2
{[%clk 0:00:50.5]} 36... Rxb3 {[%clk 0:01:09.3]} 37. Rxa5+ {[%clk 0:00:50.7]}
37... Kb8 {[%clk 0:01:09.8]} 38. Ra2 {[%clk 0:00:50.4]} 38... Rc3 {[%clk
0:01:05.5]} 39. Rd2 {[%clk 0:00:47.7]} 39... Rxc4 {[%clk 0:01:04.8]} 40. Rd8+
{[%clk 0:00:46.4]} 40... Ka7 {[%clk 0:00:56]} 41. Rd7 {[%clk 0:00:46.8]} 41...
Rxc5 {[%clk 0:00:55.3]} 42. Rxh7 {[%clk 0:00:47]} 42... Rc2+ {[%clk 0:00:55.9]}
43. Kf1 {[%clk 0:00:42.9]} 43... Rc1+ {[%clk 0:00:34.6]} 44. Kf2 {[%clk
0:00:42.6]} 44... Rc2+ {[%clk 0:00:34.9]} 45. Kf1 {[%clk 0:00:42.7]} 45... Rc1+
{[%clk 0:00:35.2]} 46. Kf2 {[%clk 0:00:35.1]} 46... Rc2+ {[%clk 0:00:35.1]} 47.
Kf1 {[%clk 0:00:20.3]} 1/2-1/2

[Event "Late-Titled-Tuesday-Blitz-February-06-2024"]
[Site "Chess.com"]
[Date "2024.02.06"]
[Round "8"]
[White "lluiss"]
[Black "NovakRatko"]
[Result "0-1"]
[WhiteElo "2166"]
[BlackElo "2402"]
[TimeControl "180+1"]
[EndTime "15:28:37 PST"]
[Termination "NovakRatko won by resignation"]

1. e4 {[%clk 0:02:52.5]} 1... d5 {[%clk 0:02:59.5]} 2. e5 {[%clk 0:02:51.4]}
2... c5 {[%clk 0:02:59.8]} 3. Nf3 {[%clk 0:02:48.4]} 3... Nc6 {[%clk 0:02:59.7]}
4. Bb5 {[%clk 0:02:44.9]} 4... Qb6 {[%clk 0:02:59.4]} 5. a4 {[%clk 0:02:42.5]}
5... a6 {[%clk 0:02:58.6]} 6. Bxc6+ {[%clk 0:02:42.6]} 6... Qxc6 {[%clk
0:02:59]} 7. a5 {[%clk 0:02:42.9]} 7... Bg4 {[%clk 0:02:58.4]} 8. d3 {[%clk
0:02:39.1]} 8... d4 {[%clk 0:02:58.2]} 9. Nbd2 {[%clk 0:02:37.5]} 9... e6 {[%clk
0:02:55.8]} 10. O-O {[%clk 0:02:36.6]} 10... Ne7 {[%clk 0:02:50.6]} 11. Nc4
{[%clk 0:02:33.9]} 11... Nd5 {[%clk 0:02:47.4]} 12. h3 {[%clk 0:02:26.3]} 12...
Bh5 {[%clk 0:02:47.1]} 13. Bd2 {[%clk 0:02:13.5]} 13... Be7 {[%clk 0:02:46.3]}
14. Re1 {[%clk 0:02:11.1]} 14... O-O {[%clk 0:02:45.7]} 15. Qe2 {[%clk
0:01:42.7]} 15... Rad8 {[%clk 0:02:37.9]} 16. Qe4 {[%clk 0:01:42.2]} 16... f5
{[%clk 0:02:26.6]} 17. exf6 {[%clk 0:01:40.9]} 17... Rxf6 {[%clk 0:02:26.3]} 18.
Bg5 {[%clk 0:01:28]} 18... Bxf3 {[%clk 0:02:23.8]} 19. gxf3 {[%clk 0:01:24.2]}
19... Rg6 {[%clk 0:02:23.7]} 20. h4 {[%clk 0:01:13.4]} 20... Nb4 {[%clk
0:02:17.5]} 21. Ne5 {[%clk 0:00:53.3]} 21... Qxe4 {[%clk 0:01:17.4]} 22. Rxe4
{[%clk 0:00:51.4]} 22... Rxg5+ {[%clk 0:01:07.1]} 23. hxg5 {[%clk 0:00:50.6]}
23... Nxc2 {[%clk 0:01:04.7]} 24. Rc1 {[%clk 0:00:43.9]} 24... Nb4 {[%clk
0:01:04.9]} 25. Rd1 {[%clk 0:00:32.9]} 25... Bxg5 {[%clk 0:00:59.1]} 26. Nc4
{[%clk 0:00:32.8]} 26... Kf7 {[%clk 0:00:55.9]} 27. Kf1 {[%clk 0:00:32.8]} 27...
h5 {[%clk 0:00:38.7]} 28. Ke2 {[%clk 0:00:31.4]} 28... Nd5 {[%clk 0:00:32.7]}
29. Re5 {[%clk 0:00:23.5]} 29... Bf6 {[%clk 0:00:26.1]} 30. Re4 {[%clk
0:00:19.1]} 30... g5 {[%clk 0:00:24.6]} 31. Rh1 {[%clk 0:00:17.9]} 31... h4
{[%clk 0:00:24.2]} 32. Ne5+ {[%clk 0:00:17.6]} 32... Bxe5 {[%clk 0:00:22.8]} 33.
Rxe5 {[%clk 0:00:17.2]} 33... Kf6 {[%clk 0:00:23.3]} 34. Rg1 {[%clk 0:00:15.8]}
34... Kxe5 {[%clk 0:00:21.9]} 0-1

[Event "Late-Titled-Tuesday-Blitz-February-06-2024"]
[Site "Chess.com"]
[Date "2024.02.06"]
[Round "8"]
[White "kingofthenil"]
[Black "Levanzovsky"]
[Result "0-1"]
[WhiteElo "2667"]
[BlackElo "2561"]
[TimeControl "180+1"]
[EndTime "15:28:43 PST"]
[Termination "Levanzovsky won on time"]

1. e4 {[%clk 0:02:02.5]} 1... c5 {[%clk 0:02:57.8]} 2. d3 {[%clk 0:02:02.4]}
2... Nc6 {[%clk 0:02:57.1]} 3. g3 {[%clk 0:02:03.3]} 3... g6 {[%clk 0:02:55.7]}
4. Bg2 {[%clk 0:02:03.7]} 4... Bg7 {[%clk 0:02:56.3]} 5. f4 {[%clk 0:02:04.6]}
5... Rb8 {[%clk 0:02:54.5]} 6. Nf3 {[%clk 0:02:05.5]} 6... b5 {[%clk 0:02:54.3]}
7. O-O {[%clk 0:02:06.4]} 7... b4 {[%clk 0:02:52.1]} 8. Nbd2 {[%clk 0:02:06.1]}
8... d6 {[%clk 0:02:48.5]} 9. Nc4 {[%clk 0:02:05.7]} 9... a5 {[%clk 0:02:46.1]}
10. e5 {[%clk 0:02:05.3]} 10... d5 {[%clk 0:02:43.6]} 11. Ne3 {[%clk 0:01:45.3]}
11... e6 {[%clk 0:02:38.8]} 12. c4 {[%clk 0:01:40.1]} 12... Nge7 {[%clk
0:02:11.1]} 13. Ng4 {[%clk 0:01:35.5]} 13... Nf5 {[%clk 0:02:06.8]} 14. Re1
{[%clk 0:01:21.2]} 14... O-O {[%clk 0:02:00.4]} 15. b3 {[%clk 0:01:19.8]} 15...
a4 {[%clk 0:01:59.2]} 16. bxa4 {[%clk 0:01:15.1]} 16... dxc4 {[%clk 0:01:48.2]}
17. dxc4 {[%clk 0:01:15.1]} 17... Ba6 {[%clk 0:01:48.6]} 18. Bb2 {[%clk
0:01:06]} 18... Na5 {[%clk 0:01:42.4]} 19. Nf6+ {[%clk 0:01:04.2]} 19... Bxf6
{[%clk 0:01:42.2]} 20. exf6 {[%clk 0:01:05.1]} 20... Nxc4 {[%clk 0:01:41.5]} 21.
Be5 {[%clk 0:01:01.4]} 21... Qxd1 {[%clk 0:01:36.8]} 22. Raxd1 {[%clk
0:01:00.5]} 22... Rbd8 {[%clk 0:01:37.4]} 23. Rxd8 {[%clk 0:00:52.8]} 23... Rxd8
{[%clk 0:01:36.1]} 24. Rc1 {[%clk 0:00:53.7]} 24... Nfe3 {[%clk 0:01:29.3]} 25.
Ng5 {[%clk 0:00:46.3]} 25... Nxg2 {[%clk 0:01:18]} 26. Kxg2 {[%clk 0:00:45.5]}
26... h6 {[%clk 0:01:05.9]} 27. Nf3 {[%clk 0:00:34]} 27... Rd3 {[%clk
0:00:53.7]} 28. Kf2 {[%clk 0:00:30]} 28... Kf8 {[%clk 0:00:40.4]} 29. a5 {[%clk
0:00:05.6]} 29... Ke8 {[%clk 0:00:39.6]} 30. Nh4 {[%clk 0:00:02.4]} 30... Rd2+
{[%clk 0:00:36.2]} 31. Kf3 {[%clk 0:00:03]} 31... Bb7+ {[%clk 0:00:35.5]} 32.
Kg4 {[%clk 0:00:03.5]} 32... Ne3+ {[%clk 0:00:30.7]} 33. Kh3 {[%clk 0:00:03.1]}
33... c4 {[%clk 0:00:30.1]} 34. Rb1 {[%clk 0:00:01.4]} 34... g5 {[%clk 0:00:26]}
35. fxg5 {[%clk 0:00:01.4]} 35... hxg5 {[%clk 0:00:26.9]} 0-1